{"text_format":"3","workbook":"xlsx","n_sheets":1,"sheets":["Listă inventar"],"not_rendered":{"defined_names":3},"read":"whole","date_system":"1900"}

{"sheet":"Listă inventar","index":0,"n_rows":28,"n_cols":12,"rows_kept":28,"merged":[[0,2,0,4],[0,5,0,6]]}
[null,null,"Listă inventar",null,null,"Evidențiați elementele care vor fi comandate din nou?",null,"Da"]
[]
[null,"Elemente semnalizate pentru comenzi repetate","ID inventar","Nume","Descriere","Preț unitar","Cantitate în stoc","Valoarea inventar","Nivel comandă repetată","Timp în zile comandă repetată","Cantitate comandă repetată","Întrerupt?"]
[null,{"$f":"IFERROR((ListăInventar[[#This Row],[Cantitate în stoc]]<=ListăInventar[[#This Row],[Nivel comandă repetată]])*(ListăInventar[[#This Row],[Întrerupt?]]=\"\")*valEvidențiată,0)","v":1},"IN0001","Articolul 1","Desc 1",{"v":51,"d":"51.00 RON"},25,{"$f":"ListăInventar[[#This Row],[Preț unitar]]*ListăInventar[[#This Row],[Cantitate în stoc]]","v":{"v":1275,"d":"1,275.00 RON"}},29,13,50,""]
[null,{"$f":"IFERROR((ListăInventar[[#This Row],[Cantitate în stoc]]<=ListăInventar[[#This Row],[Nivel comandă repetată]])*(ListăInventar[[#This Row],[Întrerupt?]]=\"\")*valEvidențiată,0)","v":1},"IN0002","Articolul 2","Desc 2",{"v":93,"d":"93.00 RON"},132,{"$f":"ListăInventar[[#This Row],[Preț unitar]]*ListăInventar[[#This Row],[Cantitate în stoc]]","v":{"v":12276,"d":"12,276.00 RON"}},231,4,50,""]
[null,{"$f":"IFERROR((ListăInventar[[#This Row],[Cantitate în stoc]]<=ListăInventar[[#This Row],[Nivel comandă repetată]])*(ListăInventar[[#This Row],[Întrerupt?]]=\"\")*valEvidențiată,0)","v":0},"IN0003","Articolul 3","Desc 3",{"v":57,"d":"57.00 RON"},151,{"$f":"ListăInventar[[#This Row],[Preț unitar]]*ListăInventar[[#This Row],[Cantitate în stoc]]","v":{"v":8607,"d":"8,607.00 RON"}},114,11,150,""]
[null,{"$f":"IFERROR((ListăInventar[[#This Row],[Cantitate în stoc]]<=ListăInventar[[#This Row],[Nivel comandă repetată]])*(ListăInventar[[#This Row],[Întrerupt?]]=\"\")*valEvidențiată,0)","v":0},"IN0004","Articolul 4","Desc 4",{"v":19,"d":"19.00 RON"},186,{"$f":"ListăInventar[[#This Row],[Preț unitar]]*ListăInventar[[#This Row],[Cantitate în stoc]]","v":{"v":3534,"d":"3,534.00 RON"}},158,6,50,""]
[null,{"$f":"IFERROR((ListăInventar[[#This Row],[Cantitate în stoc]]<=ListăInventar[[#This Row],[Nivel comandă repetată]])*(ListăInventar[[#This Row],[Întrerupt?]]=\"\")*valEvidențiată,0)","v":0},"IN0005","Articolul 5","Desc 5",{"v":75,"d":"75.00 RON"},62,{"$f":"ListăInventar[[#This Row],[Preț unitar]]*ListăInventar[[#This Row],[Cantitate în stoc]]","v":{"v":4650,"d":"4,650.00 RON"}},39,12,50,""]
[null,{"$f":"IFERROR((ListăInventar[[#This Row],[Cantitate în stoc]]<=ListăInventar[[#This Row],[Nivel comandă repetată]])*(ListăInventar[[#This Row],[Întrerupt?]]=\"\")*valEvidențiată,0)","v":1},"IN0006","Articolul 6","Desc 6",{"v":11,"d":"11.00 RON"},5,{"$f":"ListăInventar[[#This Row],[Preț unitar]]*ListăInventar[[#This Row],[Cantitate în stoc]]","v":{"v":55,"d":"55.00 RON"}},9,13,150,""]
[null,{"$f":"IFERROR((ListăInventar[[#This Row],[Cantitate în stoc]]<=ListăInventar[[#This Row],[Nivel comandă repetată]])*(ListăInventar[[#This Row],[Întrerupt?]]=\"\")*valEvidențiată,0)","v":0},"IN0007","Articolul 7","Desc 7",{"v":56,"d":"56.00 RON"},58,{"$f":"ListăInventar[[#This Row],[Preț unitar]]*ListăInventar[[#This Row],[Cantitate în stoc]]","v":{"v":3248,"d":"3,248.00 RON"}},109,7,100,"da"]
[null,{"$f":"IFERROR((ListăInventar[[#This Row],[Cantitate în stoc]]<=ListăInventar[[#This Row],[Nivel comandă repetată]])*(ListăInventar[[#This Row],[Întrerupt?]]=\"\")*valEvidențiată,0)","v":1},"IN0008","Articolul 8","Desc 8",{"v":38,"d":"38.00 RON"},101,{"$f":"ListăInventar[[#This Row],[Preț unitar]]*ListăInventar[[#This Row],[Cantitate în stoc]]","v":{"v":3838,"d":"3,838.00 RON"}},162,3,100,""]
[null,{"$f":"IFERROR((ListăInventar[[#This Row],[Cantitate în stoc]]<=ListăInventar[[#This Row],[Nivel comandă repetată]])*(ListăInventar[[#This Row],[Întrerupt?]]=\"\")*valEvidențiată,0)","v":0},"IN0009","Articolul 9","Desc 9",{"v":59,"d":"59.00 RON"},122,{"$f":"ListăInventar[[#This Row],[Preț unitar]]*ListăInventar[[#This Row],[Cantitate în stoc]]","v":{"v":7198,"d":"7,198.00 RON"}},82,3,150,""]
[null,{"$f":"IFERROR((ListăInventar[[#This Row],[Cantitate în stoc]]<=ListăInventar[[#This Row],[Nivel comandă repetată]])*(ListăInventar[[#This Row],[Întrerupt?]]=\"\")*valEvidențiată,0)","v":1},"IN0010","Articolul 10","Desc 10",{"v":50,"d":"50.00 RON"},175,{"$f":"ListăInventar[[#This Row],[Preț unitar]]*ListăInventar[[#This Row],[Cantitate în stoc]]","v":{"v":8750,"d":"8,750.00 RON"}},283,8,150,""]
[null,{"$f":"IFERROR((ListăInventar[[#This Row],[Cantitate în stoc]]<=ListăInventar[[#This Row],[Nivel comandă repetată]])*(ListăInventar[[#This Row],[Întrerupt?]]=\"\")*valEvidențiată,0)","v":1},"IN0011","Articolul 11","Desc 11",{"v":59,"d":"59.00 RON"},176,{"$f":"ListăInventar[[#This Row],[Preț unitar]]*ListăInventar[[#This Row],[Cantitate în stoc]]","v":{"v":10384,"d":"10,384.00 RON"}},229,1,100,""]
[null,{"$f":"IFERROR((ListăInventar[[#This Row],[Cantitate în stoc]]<=ListăInventar[[#This Row],[Nivel comandă repetată]])*(ListăInventar[[#This Row],[Întrerupt?]]=\"\")*valEvidențiată,0)","v":1},"IN0012","Articolul 12","Desc 12",{"v":18,"d":"18.00 RON"},22,{"$f":"ListăInventar[[#This Row],[Preț unitar]]*ListăInventar[[#This Row],[Cantitate în stoc]]","v":{"v":396,"d":"396.00 RON"}},36,12,50,""]
[null,{"$f":"IFERROR((ListăInventar[[#This Row],[Cantitate în stoc]]<=ListăInventar[[#This Row],[Nivel comandă repetată]])*(ListăInventar[[#This Row],[Întrerupt?]]=\"\")*valEvidențiată,0)","v":1},"IN0013","Articolul 13","Desc 13",{"v":26,"d":"26.00 RON"},72,{"$f":"ListăInventar[[#This Row],[Preț unitar]]*ListăInventar[[#This Row],[Cantitate în stoc]]","v":{"v":1872,"d":"1,872.00 RON"}},102,9,100,""]
[null,{"$f":"IFERROR((ListăInventar[[#This Row],[Cantitate în stoc]]<=ListăInventar[[#This Row],[Nivel comandă repetată]])*(ListăInventar[[#This Row],[Întrerupt?]]=\"\")*valEvidențiată,0)","v":1},"IN0014","Articolul 14","Desc 14",{"v":42,"d":"42.00 RON"},62,{"$f":"ListăInventar[[#This Row],[Preț unitar]]*ListăInventar[[#This Row],[Cantitate în stoc]]","v":{"v":2604,"d":"2,604.00 RON"}},83,2,100,""]
[null,{"$f":"IFERROR((ListăInventar[[#This Row],[Cantitate în stoc]]<=ListăInventar[[#This Row],[Nivel comandă repetată]])*(ListăInventar[[#This Row],[Întrerupt?]]=\"\")*valEvidențiată,0)","v":0},"IN0015","Articolul 15","Desc 15",{"v":32,"d":"32.00 RON"},46,{"$f":"ListăInventar[[#This Row],[Preț unitar]]*ListăInventar[[#This Row],[Cantitate în stoc]]","v":{"v":1472,"d":"1,472.00 RON"}},23,15,50,""]
[null,{"$f":"IFERROR((ListăInventar[[#This Row],[Cantitate în stoc]]<=ListăInventar[[#This Row],[Nivel comandă repetată]])*(ListăInventar[[#This Row],[Întrerupt?]]=\"\")*valEvidențiată,0)","v":1},"IN0016","Articolul 16","Desc 16",{"v":90,"d":"90.00 RON"},96,{"$f":"ListăInventar[[#This Row],[Preț unitar]]*ListăInventar[[#This Row],[Cantitate în stoc]]","v":{"v":8640,"d":"8,640.00 RON"}},180,3,50,""]
[null,{"$f":"IFERROR((ListăInventar[[#This Row],[Cantitate în stoc]]<=ListăInventar[[#This Row],[Nivel comandă repetată]])*(ListăInventar[[#This Row],[Întrerupt?]]=\"\")*valEvidențiată,0)","v":0},"IN0017","Articolul 17","Desc 17",{"v":97,"d":"97.00 RON"},57,{"$f":"ListăInventar[[#This Row],[Preț unitar]]*ListăInventar[[#This Row],[Cantitate în stoc]]","v":{"v":5529,"d":"5,529.00 RON"}},98,12,50,"Da"]
[null,{"$f":"IFERROR((ListăInventar[[#This Row],[Cantitate în stoc]]<=ListăInventar[[#This Row],[Nivel comandă repetată]])*(ListăInventar[[#This Row],[Întrerupt?]]=\"\")*valEvidențiată,0)","v":1},"IN0018","Articolul 18","Desc 18",{"v":12,"d":"12.00 RON"},6,{"$f":"ListăInventar[[#This Row],[Preț unitar]]*ListăInventar[[#This Row],[Cantitate în stoc]]","v":{"v":72,"d":"72.00 RON"}},7,13,50,""]
[null,{"$f":"IFERROR((ListăInventar[[#This Row],[Cantitate în stoc]]<=ListăInventar[[#This Row],[Nivel comandă repetată]])*(ListăInventar[[#This Row],[Întrerupt?]]=\"\")*valEvidențiată,0)","v":1},"IN0019","Articolul 19","Desc 19",{"v":82,"d":"82.00 RON"},143,{"$f":"ListăInventar[[#This Row],[Preț unitar]]*ListăInventar[[#This Row],[Cantitate în stoc]]","v":{"v":11726,"d":"11,726.00 RON"}},164,12,150]
[null,{"$f":"IFERROR((ListăInventar[[#This Row],[Cantitate în stoc]]<=ListăInventar[[#This Row],[Nivel comandă repetată]])*(ListăInventar[[#This Row],[Întrerupt?]]=\"\")*valEvidențiată,0)","v":0},"IN0020","Articolul 20","Desc 20",{"v":16,"d":"16.00 RON"},124,{"$f":"ListăInventar[[#This Row],[Preț unitar]]*ListăInventar[[#This Row],[Cantitate în stoc]]","v":{"v":1984,"d":"1,984.00 RON"}},113,14,50,""]
[null,{"$f":"IFERROR((ListăInventar[[#This Row],[Cantitate în stoc]]<=ListăInventar[[#This Row],[Nivel comandă repetată]])*(ListăInventar[[#This Row],[Întrerupt?]]=\"\")*valEvidențiată,0)","v":0},"IN0021","Articolul 21","Desc 21",{"v":19,"d":"19.00 RON"},112,{"$f":"ListăInventar[[#This Row],[Preț unitar]]*ListăInventar[[#This Row],[Cantitate în stoc]]","v":{"v":2128,"d":"2,128.00 RON"}},75,11,50,""]
[null,{"$f":"IFERROR((ListăInventar[[#This Row],[Cantitate în stoc]]<=ListăInventar[[#This Row],[Nivel comandă repetată]])*(ListăInventar[[#This Row],[Întrerupt?]]=\"\")*valEvidențiată,0)","v":0},"IN0022","Articolul 22","Desc 22",{"v":24,"d":"24.00 RON"},182,{"$f":"ListăInventar[[#This Row],[Preț unitar]]*ListăInventar[[#This Row],[Cantitate în stoc]]","v":{"v":4368,"d":"4,368.00 RON"}},132,15,150,""]
[null,{"$f":"IFERROR((ListăInventar[[#This Row],[Cantitate în stoc]]<=ListăInventar[[#This Row],[Nivel comandă repetată]])*(ListăInventar[[#This Row],[Întrerupt?]]=\"\")*valEvidențiată,0)","v":0},"IN0023","Articolul 23","Desc 23",{"v":29,"d":"29.00 RON"},106,{"$f":"ListăInventar[[#This Row],[Preț unitar]]*ListăInventar[[#This Row],[Cantitate în stoc]]","v":{"v":3074,"d":"3,074.00 RON"}},142,1,150,"Da"]
[null,{"$f":"IFERROR((ListăInventar[[#This Row],[Cantitate în stoc]]<=ListăInventar[[#This Row],[Nivel comandă repetată]])*(ListăInventar[[#This Row],[Întrerupt?]]=\"\")*valEvidențiată,0)","v":0},"IN0024","Articolul 24","Desc 24",{"v":75,"d":"75.00 RON"},173,{"$f":"ListăInventar[[#This Row],[Preț unitar]]*ListăInventar[[#This Row],[Cantitate în stoc]]","v":{"v":12975,"d":"12,975.00 RON"}},127,9,100,""]
[null,{"$f":"IFERROR((ListăInventar[[#This Row],[Cantitate în stoc]]<=ListăInventar[[#This Row],[Nivel comandă repetată]])*(ListăInventar[[#This Row],[Întrerupt?]]=\"\")*valEvidențiată,0)","v":0},"IN0025","Articolul 25","Desc 25",{"v":14,"d":"14.00 RON"},28,{"$f":"ListăInventar[[#This Row],[Preț unitar]]*ListăInventar[[#This Row],[Cantitate în stoc]]","v":{"v":392,"d":"392.00 RON"}},21,8,50,""]